[Event "Superettan 2017/2018"]
[Site "Vegagatan 20, Gothenburg, Sweden"]
[Date "2018.02.04"]
[Round "3.9"]
[White "Christiansen, Johan-Sebastian"]
[Black "Tukhaev, Adam"]
[Result "1/2-1/2"]
[TimeControl "90 minutes for 40 moves + 30 minutes for the rest of the game + 30 seconds per move from move one."]
[WhiteTitle "IM"]
[BlackTitle "GM"]
[WhiteFideId "1512668"]
[BlackFideId "14109476"]
[WhiteElo "2498"]
[BlackElo "2556"]

1. e4 {[%clk 01:30:57]} {[%emt 00:00:02]} e5 {[%clk 01:29:25]} {[%emt
00:01:35]} 2. Nf3 {[%clk 01:31:21]} {[%emt 00:00:07]} Nf6 {[%clk 01:28:03]}
{[%emt 00:01:51]} 3. Nxe5 {[%clk 01:30:26]} {[%emt 00:01:25]} d6 {[%clk
01:28:27]} {[%emt 00:00:05]} 4. Nf3 {[%clk 01:30:50]} {[%emt 00:00:06]} Nxe4
{[%clk 01:28:51]} {[%emt 00:00:06]} 5. d4 {[%clk 01:31:04]} {[%emt 00:00:16]}
d5 {[%clk 01:27:20]} {[%emt 00:02:00]} 6. Bd3 {[%clk 01:30:25]} {[%emt
00:01:10]} Be7 {[%clk 01:26:46]} {[%emt 00:01:04]} 7. O-O {[%clk 01:30:22]}
{[%emt 00:00:33]} Nd6 {[%clk 01:25:31]} {[%emt 00:01:44]} 8. Re1 {[%clk
01:28:24]} {[%emt 00:02:29]} O-O {[%clk 01:25:25]} {[%emt 00:00:35]} 9. Bf4
{[%clk 01:26:22]} {[%emt 00:02:32]} Bg4 {[%clk 01:17:37]} {[%emt 00:08:26]} 10.
h3 {[%clk 01:25:49]} {[%emt 00:01:04]} Be6 {[%clk 00:29:33]} {[%emt 00:48:27]}
11. Nbd2 {[%clk 01:14:32]} {[%emt 00:11:49]} Nd7 {[%clk 00:29:45]} {[%emt
00:00:17]} 12. Nf1 {[%clk 01:11:40]} {[%emt 00:03:28]} c5 {[%clk 00:26:48]}
{[%emt 00:03:37]} 13. c3 {[%clk 01:10:39]} {[%emt 00:01:21]} Qb6 {[%clk
00:25:06]} {[%emt 00:02:38]} 14. Rb1 {[%clk 00:54:23]} {[%emt 00:16:11]} Ne4
{[%clk 00:22:35]} {[%emt 00:03:01]} 15. Ne3 {[%clk 00:47:03]} {[%emt 00:07:50]}
cxd4 {[%clk 00:18:12]} {[%emt 00:04:53]} 16. Nxd4 {[%clk 00:36:34]} {[%emt
00:11:00]} Ndc5 {[%clk 00:13:02]} {[%emt 00:05:40]} 17. Bc2 {[%clk 00:36:58]}
{[%emt 00:00:06]} Bh4 {[%clk 00:12:52]} {[%emt 00:00:40]} 18. Rf1 {[%clk
00:35:48]} {[%emt 00:01:41]} Rad8 {[%clk 00:08:14]} {[%emt 00:05:08]} 19. a4
{[%clk 00:30:59]} {[%emt 00:05:19]} a5 {[%clk 00:05:29]} {[%emt 00:03:15]} 20.
b4 {[%clk 00:21:17]} {[%emt 00:10:13]} Na6 {[%clk 00:05:52]} {[%emt 00:00:06]}
21. bxa5 {[%clk 00:15:38]} {[%emt 00:06:09]} Qc5 {[%clk 00:06:12]} {[%emt
00:00:10]} 22. Bxe4 {[%clk 00:11:48]} {[%emt 00:04:20]} dxe4 {[%clk 00:06:22]}
{[%emt 00:00:19]} 23. Nxe6 {[%clk 00:11:54]} {[%emt 00:00:25]} fxe6 {[%clk
00:05:05]} {[%emt 00:01:46]} 24. Qg4 {[%clk 00:12:20]} {[%emt 00:00:04]} Qe7
{[%clk 00:04:57]} {[%emt 00:00:38]} 25. Be5 {[%clk 00:10:24]} {[%emt 00:02:26]}
Bg5 {[%clk 00:05:05]} {[%emt 00:00:22]} 26. Nc4 {[%clk 00:09:17]} {[%emt
00:01:37]} Rf5 {[%clk 00:03:09]} {[%emt 00:02:25]} 27. Qxe4 {[%clk 00:07:43]}
{[%emt 00:02:05]} Nc5 {[%clk 00:03:37]} {[%emt 00:00:02]} 28. Qc2 {[%clk
00:02:00]} {[%emt 00:06:13]} Bf4 {[%clk 00:03:41]} {[%emt 00:00:26]} 29. Bd4
{[%clk 00:01:11]} {[%emt 00:01:18]} Bb8 {[%clk 00:04:07]} {[%emt 00:00:04]} 30.
Rbe1 {[%clk 00:00:58]} {[%emt 00:00:43]} Qc7 {[%clk 00:01:22]} {[%emt
00:03:15]} 31. Be5 {[%clk 00:01:05]} {[%emt 00:00:23]} Qc6 {[%clk 00:01:48]}
{[%emt 00:00:03]} 32. Bxb8 {[%clk 00:01:20]} {[%emt 00:00:15]} Rxb8 {[%clk
00:02:03]} {[%emt 00:00:15]} 33. Ne5 {[%clk 00:00:48]} {[%emt 00:01:02]} Qxa4
{[%clk 00:01:59]} {[%emt 00:00:33]} 34. Qxa4 {[%clk 00:00:50]} {[%emt
00:00:28]} Nxa4 {[%clk 00:02:26]} {[%emt 00:00:03]} 35. f4 {[%clk 00:01:12]}
{[%emt 00:00:09]} Ra8 {[%clk 00:02:20]} {[%emt 00:00:35]} 36. c4 {[%clk
00:00:32]} {[%emt 00:01:11]} Rxa5 {[%clk 00:02:37]} {[%emt 00:00:13]} 37. Ra1
{[%clk 00:00:36]} {[%emt 00:00:26]} Rf8 {[%clk 00:01:26]} {[%emt 00:01:41]} 38.
Rfd1 {[%clk 00:00:32]} {[%emt 00:00:34]} Ra6 {[%clk 00:01:07]} {[%emt
00:00:49]} 39. Rd7 {[%clk 00:00:40]} {[%emt 00:00:22]} Nc5 {[%clk 00:01:00]}
{[%emt 00:00:37]} 40. Rxa6 {[%clk 00:00:56]} {[%emt 00:00:14]} Nxd7 {[%clk
00:00:44]} {[%emt 00:00:47]} 41. Rxe6 {[%clk 00:27:33]} {[%emt 00:03:52]} Nc5
{[%clk 00:28:26]} {[%emt 00:02:47]} 42. Rb6 {[%clk 00:26:49]} {[%emt 00:01:14]}
Rxf4 {[%clk 00:25:27]} {[%emt 00:03:30]} 43. Rb5 {[%clk 00:26:23]} {[%emt
00:00:56]} Ne6 {[%clk 00:24:56]} {[%emt 00:01:01]} 44. Rxb7 {[%clk 00:26:42]}
{[%emt 00:00:12]} Kf8 {[%clk 00:24:57]} {[%emt 00:00:28]} 45. Nd7+ {[%clk
00:22:33]} {[%emt 00:04:38]} Ke8 {[%clk 00:24:22]} {[%emt 00:01:06]} 46. Nb6
{[%clk 00:22:38]} {[%emt 00:00:25]} Rd4 {[%clk 00:24:48]} {[%emt 00:00:04]} 47.
Kh2 {[%clk 00:20:58]} {[%emt 00:02:10]} h5 {[%clk 00:24:45]} {[%emt 00:00:32]}
48. Nd5 {[%clk 00:18:50]} {[%emt 00:02:38]} Kf8 {[%clk 00:22:24]} {[%emt
00:02:51]} 49. Rb6 {[%clk 00:18:04]} {[%emt 00:01:15]} Kf7 {[%clk 00:20:48]}
{[%emt 00:02:06]} 50. Rb7+ {[%clk 00:16:32]} {[%emt 00:02:02]} Kg6 {[%clk
00:15:04]} {[%emt 00:06:14]} 51. Re7 {[%clk 00:14:45]} {[%emt 00:02:17]} Kf5
{[%clk 00:13:45]} {[%emt 00:01:50]} 52. g4+ {[%clk 00:14:42]} {[%emt 00:00:34]}
hxg4 {[%clk 00:14:11]} {[%emt 00:00:04]} 53. hxg4+ {[%clk 00:15:07]} {[%emt
00:00:04]} Ke5 {[%clk 00:14:32]} {[%emt 00:00:09]} 54. Nc7 {[%clk 00:14:24]}
{[%emt 00:01:13]} Kd6 {[%clk 00:14:58]} {[%emt 00:00:04]} 55. Rxe6+ {[%clk
00:14:42]} {[%emt 00:00:11]} Kxc7 {[%clk 00:15:25]} {[%emt 00:00:03]} 56. Rg6
{[%clk 00:14:32]} {[%emt 00:00:41]} Rxc4 {[%clk 00:15:39]} {[%emt 00:00:16]} 57.
Kh3 {[%clk 00:14:34]} {[%emt 00:00:28]} Kd7 {[%clk 00:15:24]} {[%emt 00:00:45]}
58. Rxg7+ {[%clk 00:14:55]} {[%emt 00:00:09]} Ke6 {[%clk 00:15:36]} {[%emt
00:00:18]} 59. Kh4 {[%clk 00:15:08]} {[%emt 00:00:16]} Kf6 {[%clk 00:15:50]}
{[%emt 00:00:17]} 60. Rg8 {[%clk 00:15:27]} {[%emt 00:00:11]} Rc1 {[%clk
00:15:54]} {[%emt 00:00:26]} 61. Rf8+ {[%clk 00:15:39]} {[%emt 00:00:18]} Kg6
{[%clk 00:16:16]} {[%emt 00:00:08]} 1/2-1/2

[Event "Superettan 2017/2018"]
[Site "Vegagatan 20, Gothenburg, Sweden"]
[Date "2018.02.04"]
[Round "3.10"]
[White "Eksmyr, Johan"]
[Black "Lindberg, Bengt"]
[Result "0-1"]
[TimeControl "90 minutes for 40 moves + 30 minutes for the rest of the game + 30 seconds per move from move one."]
[BlackTitle "IM"]
[WhiteFideId "1704346"]
[BlackFideId "1700359"]
[WhiteElo "2181"]
[BlackElo "2387"]

1. d4 {[%clk 01:29:34]} {[%emt 00:01:25]} Nf6 {[%clk 01:30:31]} {[%emt
00:00:29]} 2. Nf3 {[%clk 01:30:00]} {[%emt 00:00:05]} e6 {[%clk 01:30:42]}
{[%emt 00:00:19]} 3. Bg5 {[%clk 01:27:38]} {[%emt 00:02:52]} h6 {[%clk
01:30:22]} {[%emt 00:00:50]} 4. Bxf6 {[%clk 01:22:00]} {[%emt 00:06:09]} Qxf6
{[%clk 01:29:43]} {[%emt 00:01:08]} 5. e4 {[%clk 01:21:10]} {[%emt 00:01:20]}
d6 {[%clk 01:29:37]} {[%emt 00:00:35]} 6. Bb5+ {[%clk 01:17:41]} {[%emt
00:04:00]} c6 {[%clk 01:27:51]} {[%emt 01:27:53]} 7. Bd3 {[%clk 01:17:58]} Nd7
{[%clk 01:27:27]} {[%emt 00:00:02]} 8. Qe2 {[%clk 01:14:57]} g5 {[%clk
01:13:12]} 9. c3 {[%clk 01:09:18]} e5 {[%clk 01:06:03]} 10. h3 {[%clk
01:00:06]} h5 {[%clk 01:05:53]} 11. dxe5 {[%clk 00:46:29]} dxe5 {[%clk
01:05:54]} 12. h4 {[%clk 00:46:42]} gxh4 {[%clk 00:46:48]} 13. Nxh4 {[%clk
00:38:47]} {[%emt 00:00:49]} Nc5 {[%clk 00:46:10]} {[%emt 00:01:08]} 14. Bc2
{[%clk 00:30:55]} {[%emt 00:08:22]} Bg4 {[%clk 00:30:24]} {[%emt 00:16:16]} 15.
f3 {[%clk 00:29:56]} {[%emt 00:01:30]} Be6 {[%clk 00:30:46]} {[%emt 00:00:07]}
16. b4 {[%clk 00:28:31]} {[%emt 00:01:56]} Nd7 {[%clk 00:31:06]} {[%emt
00:00:10]} 17. Bb3 {[%clk 00:28:50]} {[%emt 00:00:13]} a5 {[%clk 00:28:06]}
{[%emt 00:03:30]} 18. Bxe6 {[%clk 00:28:27]} {[%emt 00:00:53]} Qxe6 {[%clk
00:27:41]} {[%emt 00:00:54]} 19. Nf5 {[%clk 00:16:28]} {[%emt 00:12:29]} axb4
{[%clk 00:27:00]} {[%emt 00:01:11]} 20. Qb2 {[%clk 00:07:16]} {[%emt 00:09:41]}
Nc5 {[%clk 00:25:11]} {[%emt 00:02:19]} 21. O-O {[%clk 00:06:22]} {[%emt
00:01:25]} Nd3 {[%clk 00:24:32]} {[%emt 00:01:09]} 22. Qc2 {[%clk 00:03:55]}
{[%emt 00:02:58]} b3 {[%clk 00:19:19]} {[%emt 00:05:42]} 23. axb3 {[%clk
00:04:20]} {[%emt 00:00:05]} Rxa1 {[%clk 00:19:45]} {[%emt 00:00:04]} 24. Qxd3
{[%clk 00:04:46]} {[%emt 00:00:04]} Bc5+ {[%clk 00:16:00]} {[%emt 00:04:15]} 25.
Kh2 {[%clk 00:04:55]} {[%emt 00:00:20]} O-O {[%clk 00:14:47]} {[%emt 00:01:44]}
26. Rd1 {[%clk 00:03:57]} {[%emt 00:01:29]} Kh7 {[%clk 00:14:10]} {[%emt
00:01:06]} 27. b4 {[%clk 00:03:18]} {[%emt 00:01:09]} Bb6 {[%clk 00:14:21]}
{[%emt 00:00:18]} 28. Qc2 {[%clk 00:01:22]} {[%emt 00:02:27]} Ra2 {[%clk
00:12:26]} {[%emt 00:02:24]} 29. Qc1 {[%clk 00:01:04]} {[%emt 00:00:49]} Qg6
{[%clk 00:11:29]} {[%emt 00:01:25]} 30. Rd2 {[%clk 00:00:39]} {[%emt 00:00:56]}
Qg5 {[%clk 00:11:15]} {[%emt 00:00:43]} 31. Qe1 {[%clk 00:00:49]} {[%emt
00:00:21]} Rxd2 {[%clk 00:10:02]} {[%emt 00:01:44]} 32. Nxd2 {[%clk 00:01:17]}
{[%emt 00:00:01]} Rg8 {[%clk 00:07:56]} {[%emt 00:02:36]} 33. Qe2 {[%clk
00:01:32]} {[%emt 00:00:16]} h4 {[%clk 00:07:40]} {[%emt 00:00:45]} 34. Nc4
{[%clk 00:01:47]} {[%emt 00:00:16]} Ba7 {[%clk 00:04:41]} {[%emt 00:03:29]} 35.
Qd2 {[%clk 00:00:57]} {[%emt 00:01:19]} Qxd2 {[%clk 00:03:30]} {[%emt
00:01:41]} 36. Nxd2 {[%clk 00:01:24]} {[%emt 00:00:04]} Bf2 {[%clk 00:03:47]}
{[%emt 00:00:12]} 37. Nc4 {[%clk 00:01:27]} {[%emt 00:00:27]} f6 {[%clk
00:03:31]} {[%emt 00:00:46]} 38. Na5 {[%clk 00:01:46]} {[%emt 00:00:11]} Rb8
{[%clk 00:03:34]} {[%emt 00:00:26]} 39. Nd6 {[%clk 00:01:48]} {[%emt 00:00:29]}
Be1 {[%clk 00:03:21]} {[%emt 00:00:43]} 40. Ndxb7 {[%clk 00:00:43]} {[%emt
00:01:36]} Bxc3 {[%clk 00:02:34]} {[%emt 00:01:16]} 41. Nc5 {[%clk 00:19:25]}
{[%emt 00:11:48]} Rxb4 {[%clk 00:28:54]} {[%emt 00:04:10]} 42. Ne6 {[%clk
00:15:23]} {[%emt 00:04:31]} c5 {[%clk 00:18:30]} {[%emt 00:10:55]} 43. Nc7
{[%clk 00:15:40]} {[%emt 00:00:14]} Bd4 {[%clk 00:17:18]} {[%emt 00:01:40]} 44.
Nd5 {[%clk 00:15:46]} {[%emt 00:00:25]} Ra4 {[%clk 00:17:29]} {[%emt 00:00:18]}
45. Nc6 {[%clk 00:13:19]} {[%emt 00:02:58]} Ra6 {[%clk 00:16:16]} {[%emt
00:01:43]} 46. Nce7 {[%clk 00:11:30]} {[%emt 00:02:18]} c4 {[%clk 00:14:40]}
{[%emt 00:02:07]} 47. Nb4 {[%clk 00:11:17]} {[%emt 00:00:43]} Ra7 {[%clk
00:06:36]} {[%emt 00:08:33]} 48. Ned5 {[%clk 00:10:45]} {[%emt 00:01:03]} Kg6
{[%clk 00:06:44]} {[%emt 00:00:21]} 49. f4 {[%clk 00:09:23]} {[%emt 00:01:53]}
Ra1 {[%clk 00:05:19]} {[%emt 00:01:54]} 50. Kh3 {[%clk 00:08:29]} {[%emt
00:01:24]} exf4 {[%clk 00:04:12]} {[%emt 00:01:38]} 51. Nxf4+ {[%clk 00:08:57]}
{[%emt 00:00:01]} Kh6 {[%clk 00:04:32]} {[%emt 00:00:10]} 52. Nbd5 {[%clk
00:07:30]} {[%emt 00:01:58]} Be5 {[%clk 00:04:39]} {[%emt 00:00:22]} 53. Ne2
{[%clk 00:06:54]} {[%emt 00:01:06]} Re1 {[%clk 00:04:33]} {[%emt 00:00:36]} 0-1

[Event "Superettan 2017/2018"]
[Site "Vegagatan 20, Gothenburg, Sweden"]
[Date "2018.02.04"]
[Round "3.11"]
[White "Rydstrom, Tom"]
[Black "Kumar, Rahul"]
[Result "1-0"]
[TimeControl "90 minutes for 40 moves + 30 minutes for the rest of the game + 30 seconds per move from move one."]
[WhiteTitle "FM"]
[WhiteFideId "1714830"]
[BlackFideId "5010969"]
[WhiteElo "2374"]
[BlackElo "2183"]

1. e4 {[%clk 01:30:57]} {[%emt 00:00:02]} g6 {[%clk 01:30:43]} {[%emt
00:00:17]} 2. d4 {[%clk 01:30:51]} {[%emt 00:00:36]} Bg7 {[%clk 01:31:06]}
{[%emt 00:00:07]} 3. Nc3 {[%clk 01:31:07]} {[%emt 00:00:14]} c6 {[%clk
01:31:29]} {[%emt 00:00:07]} 4. Nf3 {[%clk 01:29:05]} {[%emt 00:02:32]} d5
{[%clk 01:31:49]} {[%emt 00:00:09]} 5. Bd3 {[%clk 01:28:59]} {[%emt 00:00:36]}
Nh6 {[%clk 01:30:34]} {[%emt 00:01:45]} 6. Bf4 {[%clk 01:25:23]} {[%emt
00:04:06]} f6 {[%clk 01:30:53]} {[%emt 00:00:11]} 7. Qe2 {[%clk 01:24:57]}
{[%emt 00:00:57]} Nf7 {[%clk 01:29:38]} {[%emt 00:01:44]} 8. O-O-O {[%clk
01:21:14]} {[%emt 00:04:12]} O-O {[%clk 01:30:01]} {[%emt 00:00:08]} 9. Bg3
{[%clk 01:17:49]} {[%emt 00:04:41]} Bg4 {[%clk 01:23:45]} {[%emt 00:06:36]} 10.
h3 {[%clk 01:17:53]} {[%emt 01:17:59]} Bh5 {[%clk 01:24:03]} {[%emt 00:00:02]}
11. Rhe1 {[%clk 01:16:24]} Ng5 {[%clk 01:15:38]} 12. exd5 {[%clk 01:15:31]} Kh8
{[%clk 01:13:51]} 13. Qxe7 {[%clk 01:10:24]} Nxf3 {[%clk 01:11:05]} 14. gxf3
{[%clk 01:10:44]} Qxe7 {[%clk 01:01:32]} 15. Rxe7 {[%clk 01:10:53]} cxd5 {[%clk
01:00:39]} 16. Rxb7 {[%clk 01:06:11]} Bxf3 {[%clk 00:59:32]} 17. Be2 {[%clk
01:00:29]} Bg2 {[%clk 00:58:06]} 18. h4 {[%clk 00:53:04]} Nc6 {[%clk 00:55:30]}
19. h5 {[%clk 00:53:12]} gxh5 {[%clk 00:51:21]} 20. Kb1 {[%clk 00:44:33]} h4
{[%clk 00:37:16]} {[%emt 00:12:08]} 21. Bxh4 {[%clk 00:44:44]} {[%emt
00:00:20]} Rab8 {[%clk 00:37:34]} {[%emt 00:00:09]} 22. Rxg7 {[%clk 00:26:52]}
{[%emt 00:18:23]} Kxg7 {[%clk 00:37:46]} {[%emt 00:00:18]} 23. Rg1 {[%clk
00:27:18]} {[%emt 00:00:05]} Nxd4 {[%clk 00:38:05]} {[%emt 00:00:09]} 24. Rxg2+
{[%clk 00:27:47]} {[%emt 00:00:03]} Kf7 {[%clk 00:37:44]} {[%emt 00:00:51]} 25.
Bh5+ {[%clk 00:27:29]} {[%emt 00:00:47]} Ke6 {[%clk 00:36:52]} {[%emt
00:01:21]} 26. Rg1 {[%clk 00:27:47]} {[%emt 00:00:14]} Rb4 {[%clk 00:24:04]}
{[%emt 00:13:17]} 27. Re1+ {[%clk 00:26:10]} {[%emt 00:02:07]} Kd6 {[%clk
00:24:18]} {[%emt 00:00:15]} 28. Bg3+ {[%clk 00:23:43]} {[%emt 00:03:00]} Kc5
{[%clk 00:24:03]} {[%emt 00:00:44]} 29. Re7 {[%clk 00:21:30]} {[%emt 00:02:43]}
f5 {[%clk 00:20:55]} {[%emt 00:03:38]} 30. a3 {[%clk 00:15:36]} {[%emt
00:06:23]} Rc4 {[%clk 00:20:13]} {[%emt 00:01:12]} 31. b4+ {[%clk 00:15:30]}
{[%emt 00:00:36]} Kb6 {[%clk 00:19:18]} {[%emt 00:01:25]} 32. Nxd5+ {[%clk
00:15:47]} {[%emt 00:00:14]} Ka6 {[%clk 00:18:44]} {[%emt 00:01:04]} 33. a4
{[%clk 00:14:57]} {[%emt 00:01:21]} f4 {[%clk 00:18:00]} {[%emt 00:01:14]} 34.
b5+ {[%clk 00:15:22]} {[%emt 00:00:05]} Nxb5 {[%clk 00:18:18]} {[%emt
00:00:11]} 35. axb5+ {[%clk 00:15:49]} {[%emt 00:00:03]} Kxb5 {[%clk 00:18:32]}
{[%emt 00:00:16]} 36. Be2 {[%clk 00:15:35]} {[%emt 00:00:44]} fxg3 {[%clk
00:18:53]} {[%emt 00:00:10]} 37. fxg3 {[%clk 00:07:44]} {[%emt 00:08:21]} Kc5
{[%clk 00:19:06]} {[%emt 00:00:16]} 38. Rc7+ {[%clk 00:07:57]} {[%emt
00:00:17]} 1-0

[Event "Superettan 2017/2018"]
[Site "Vegagatan 20, Gothenburg, Sweden"]
[Date "2018.02.04"]
[Round "3.12"]
[White "Arnelind, Mikael"]
[Black "Shkuran, Danylo"]
[Result "0-1"]
[TimeControl "90 minutes for 40 moves + 30 minutes for the rest of the game + 30 seconds per move from move one."]
[BlackTitle "IM"]
[WhiteFideId "1704290"]
[BlackFideId "14106248"]
[WhiteElo "2220"]
[BlackElo "2397"]

1. d4 {[%clk 01:30:55]} {[%emt 00:00:03]} d5 {[%clk 01:30:46]} {[%emt
00:00:17]} 2. c4 {[%clk 01:31:18]} {[%emt 00:00:06]} c6 {[%clk 01:31:13]}
{[%emt 00:00:03]} 3. Nc3 {[%clk 01:31:36]} {[%emt 00:00:12]} Nf6 {[%clk
01:31:37]} {[%emt 00:00:06]} 4. cxd5 {[%clk 01:32:00]} {[%emt 00:00:06]} cxd5
{[%clk 01:30:07]} {[%emt 00:02:01]} 5. Bf4 {[%clk 01:32:16]} {[%emt 00:00:10]}
Nc6 {[%clk 01:30:07]} {[%emt 00:00:33]} 6. e3 {[%clk 01:32:28]} {[%emt
00:00:17]} a6 {[%clk 01:30:10]} {[%emt 00:00:29]} 7. Bd3 {[%clk 01:25:59]}
{[%emt 00:06:58]} Bg4 {[%clk 01:26:38]} {[%emt 00:04:02]} 8. Nge2 {[%clk
01:26:22]} {[%emt 00:00:05]} e6 {[%clk 01:26:30]} {[%emt 00:00:40]} 9. O-O
{[%clk 01:26:02]} {[%emt 00:00:50]} Bd6 {[%clk 01:25:32]} {[%emt 00:01:27]} 10.
f3 {[%clk 01:25:54]} {[%emt 00:00:38]} Bh5 {[%clk 01:25:37]} {[%emt 00:00:25]}
11. Rc1 {[%clk 01:23:57]} {[%emt 00:02:34]} O-O {[%clk 01:21:40]} {[%emt
01:25:01]} 12. Bxd6 {[%clk 01:08:10]} {[%emt 00:00:02]} Qxd6 {[%clk 01:21:22]}
13. Nf4 {[%clk 01:07:22]} Rfc8 {[%clk 01:15:27]} 14. Nxh5 {[%clk 01:02:04]}
Nxh5 {[%clk 01:15:49]} 15. f4 {[%clk 00:56:07]} Nf6 {[%clk 01:15:11]} 16. Na4
{[%clk 00:47:19]} Na5 {[%clk 01:04:39]} 17. b3 {[%clk 00:44:37]} Nd7 {[%clk
00:56:51]} 18. Qd2 {[%clk 00:40:35]} Nc6 {[%clk 00:56:43]} 19. Nc5 {[%clk
00:40:27]} Nxc5 {[%clk 00:53:56]} 20. Rxc5 {[%clk 00:32:35]} {[%emt 00:06:54]}
g6 {[%clk 00:44:20]} {[%emt 00:10:06]} 21. Rfc1 {[%clk 00:31:31]} {[%emt
00:01:31]} b6 {[%clk 00:42:57]} {[%emt 00:01:56]} 22. R5c2 {[%clk 00:29:07]}
{[%emt 00:02:54]} a5 {[%clk 00:42:58]} {[%emt 00:00:30]} 23. Bb5 {[%clk
00:26:21]} {[%emt 00:03:16]} Ne7 {[%clk 00:43:02]} {[%emt 00:00:25]} 24. Rxc8+
{[%clk 00:24:23]} {[%emt 00:02:29]} Rxc8 {[%clk 00:43:15]} {[%emt 00:00:17]} 25.
Rxc8+ {[%clk 00:24:06]} {[%emt 00:00:47]} Nxc8 {[%clk 00:43:39]} {[%emt
00:00:07]} 26. Qc3 {[%clk 00:23:52]} {[%emt 00:00:43]} Na7 {[%clk 00:40:53]}
{[%emt 00:03:16]} 27. a4 {[%clk 00:20:43]} {[%emt 00:03:39]} Kg7 {[%clk
00:38:04]} {[%emt 00:03:18]} 28. Kf2 {[%clk 00:19:20]} {[%emt 00:01:54]} g5
{[%clk 00:30:22]} {[%emt 00:08:12]} 29. g3 {[%clk 00:17:36]} {[%emt 00:02:13]}
gxf4 {[%clk 00:30:19]} {[%emt 00:00:33]} 30. gxf4 {[%clk 00:16:23]} {[%emt
00:01:43]} Qd8 {[%clk 00:28:20]} {[%emt 00:02:26]} 31. Ba6 {[%clk 00:14:00]}
{[%emt 00:02:56]} Qd6 {[%clk 00:24:58]} {[%emt 00:03:52]} 32. Bb5 {[%clk
00:12:56]} {[%emt 00:01:34]} h6 {[%clk 00:24:46]} {[%emt 00:00:42]} 33. Kf3
{[%clk 00:12:11]} {[%emt 00:01:15]} Nxb5 {[%clk 00:21:36]} {[%emt 00:03:41]} 34.
axb5 {[%clk 00:12:38]} {[%emt 00:00:02]} Qa3 {[%clk 00:21:52]} {[%emt
00:00:14]} 35. Qc2 {[%clk 00:09:44]} {[%emt 00:03:25]} Qb4 {[%clk 00:16:37]}
{[%emt 00:05:44]} 36. Qd3 {[%clk 00:09:50]} {[%emt 00:00:23]} Qe1 {[%clk
00:16:52]} {[%emt 00:00:15]} 37. Kg2 {[%clk 00:08:23]} {[%emt 00:01:57]} Kf6
{[%clk 00:14:58]} {[%emt 00:02:24]} 38. h4 {[%clk 00:00:38]} {[%emt 00:08:16]}
h5 {[%clk 00:10:22]} {[%emt 00:05:07]} 39. Kf3 {[%clk 00:00:34]} {[%emt
00:00:34]} Qxh4 {[%clk 00:04:30]} {[%emt 00:05:50]} 40. Qc3 {[%clk 00:00:42]}
{[%emt 00:00:23]} Qg4+ {[%clk 00:03:00]} {[%emt 00:02:29]} 41. Kf2 {[%clk
00:01:01]} {[%emt 00:00:12]} h4 {[%clk 00:02:18]} {[%emt 00:01:11]} 42. Qc7
{[%clk 00:30:07]} {[%emt 00:01:25]} Qg3+ {[%clk 00:30:03]} {[%emt 00:02:45]} 43.
Ke2 {[%clk 00:29:41]} {[%emt 00:00:56]} Qg2+ {[%clk 00:30:25]} {[%emt
00:00:07]} 44. Kd3 {[%clk 00:28:56]} {[%emt 00:01:15]} h3 {[%clk 00:30:11]}
{[%emt 00:00:45]} 45. Qe5+ {[%clk 00:25:27]} {[%emt 00:04:00]} Ke7 {[%clk
00:30:18]} {[%emt 00:00:23]} 46. Qc7+ {[%clk 00:24:48]} {[%emt 00:01:09]} Kf8
{[%clk 00:30:40]} {[%emt 00:00:07]} 47. Qxb6 {[%clk 00:22:00]} {[%emt
00:03:19]} h2 {[%clk 00:30:36]} {[%emt 00:00:33]} 48. Qb8+ {[%clk 00:21:49]}
{[%emt 00:00:42]} Kg7 {[%clk 00:31:01]} {[%emt 00:00:05]} 49. Qe5+ {[%clk
00:22:09]} {[%emt 00:00:10]} Kg8 {[%clk 00:30:13]} {[%emt 00:01:18]} 50. b6
{[%clk 00:18:44]} {[%emt 00:03:55]} h1=Q {[%clk 00:30:28]} {[%emt 00:00:15]}
0-1